[Event "Live Chess"]
[Site "Chess.com"]
[Date "2011.02.01"]
[Round "-"]
[White "Nugget777"]
[Black "hipposcottimus"]
[Result "1-0"]
[CurrentPosition "r1b2k2/ppp2Qp1/3b3N/2n1p2P/P7/6P1/1PPN1P2/R4RK1 b - -"]
[Timezone "UTC"]
[ECO "C20"]
[ECOUrl "https://www.chess.com/openings/Kings-Pawn-Opening-Leonardis-Variation"]
[UTCDate "2011.02.01"]
[UTCTime "06:17:31"]
[WhiteElo "1685"]
[BlackElo "1765"]
[TimeControl "60"]
[Termination "Nugget777 won by checkmate"]
[StartTime "06:17:31"]
[EndDate "2011.02.01"]
[EndTime "06:19:00"]
[Link "https://www.chess.com/game/live/93546301"]

1. e4 {[%clk 0:01:00]} 1... e5 {[%clk 0:01:00]} 2. d3 {[%clk 0:00:59.7]} 2... Nc6 {[%clk 0:00:59.4]} 3. Be3 {[%clk 0:00:59.4]} 3... Nf6 {[%clk 0:00:58.7]} 4. Be2 {[%clk 0:00:59.1]} 4... d5 {[%clk 0:00:58.4]} 5. Nf3 {[%clk 0:00:58.8]} 5... dxe4 {[%clk 0:00:57.5]} 6. dxe4 {[%clk 0:00:57.7]} 6... Bd6 {[%clk 0:00:55.6]} 7. Nbd2 {[%clk 0:00:54.9]} 7... O-O {[%clk 0:00:55.2]} 8. O-O {[%clk 0:00:54.4]} 8... Ng4 {[%clk 0:00:53.7]} 9. h3 {[%clk 0:00:47.5]} 9... Nf6 {[%clk 0:00:52.6]} 10. Bg5 {[%clk 0:00:45.7]} 10... Nd7 {[%clk 0:00:52.3]} 11. Bxd8 {[%clk 0:00:44.2]} 11... Nxd8 {[%clk 0:00:51.9]} 12. g3 {[%clk 0:00:42.1]} 12... f5 {[%clk 0:00:51.6]} 13. exf5 {[%clk 0:00:40.9]} 13... Rxf5 {[%clk 0:00:50]} 14. h4 {[%clk 0:00:40.2]} 14... Nb6 {[%clk 0:00:47.7]} 15. Bd3 {[%clk 0:00:39.6]} 15... Rf6 {[%clk 0:00:46.4]} 16. Qe2 {[%clk 0:00:38.3]} 16... Re6 {[%clk 0:00:45.1]} 17. Qe4 {[%clk 0:00:37.7]} 17... Rg6 {[%clk 0:00:41.4]} 18. a4 {[%clk 0:00:33.8]} 18... Nd7 {[%clk 0:00:38.5]} 19. Qc4+ {[%clk 0:00:32.5]} 19... Ne6 {[%clk 0:00:35.4]} 20. Bxg6 {[%clk 0:00:31.1]} 20... hxg6 {[%clk 0:00:33.6]} 21. Qxe6+ {[%clk 0:00:29.9]} 21... Kh7 {[%clk 0:00:31.9]} 22. Ng5+ {[%clk 0:00:29.4]} 22... Kh6 {[%clk 0:00:30.5]} 23. Nf7+ {[%clk 0:00:29]} 23... Kh7 {[%clk 0:00:29.4]} 24. h5 {[%clk 0:00:26.2]} 24... Nc5 {[%clk 0:00:26.5]} 25. Qxg6+ {[%clk 0:00:25.3]} 25... Kg8 {[%clk 0:00:24.7]} 26. Nh6+ {[%clk 0:00:23.8]} 26... Kf8 {[%clk 0:00:23.3]} 27. Qf7# {[%clk 0:00:21.6]} 1-0

[Event "Live Chess"]
[Site "Chess.com"]
[Date "2011.02.01"]
[Round "-"]
[White "joshgregory7"]
[Black "hipposcottimus"]
[Result "1-0"]
[CurrentPosition "5R2/7p/2B2Q2/R6k/8/5P2/P1P2P1P/6K1 b - -"]
[Timezone "UTC"]
[ECO "C55"]
[ECOUrl "https://www.chess.com/openings/Italian-Game-Two-Knights-Defense-4.O-O"]
[UTCDate "2011.02.01"]
[UTCTime "06:15:19"]
[WhiteElo "1602"]
[BlackElo "1774"]
[TimeControl "60"]
[Termination "joshgregory7 won by checkmate"]
[StartTime "06:15:19"]
[EndDate "2011.02.01"]
[EndTime "06:17:17"]
[Link "https://www.chess.com/game/live/93545838"]

1. e4 {[%clk 0:01:00]} 1... e5 {[%clk 0:01:00]} 2. Nf3 {[%clk 0:00:59.6]} 2... Nc6 {[%clk 0:00:59.7]} 3. Bc4 {[%clk 0:00:58.9]} 3... Nf6 {[%clk 0:00:59.5]} 4. O-O {[%clk 0:00:57.8]} 4... d5 {[%clk 0:00:58.6]} 5. exd5 {[%clk 0:00:56.7]} 5... e4 {[%clk 0:00:58.2]} 6. dxc6 {[%clk 0:00:55]} 6... exf3 {[%clk 0:00:56.8]} 7. Re1+ {[%clk 0:00:50.6]} 7... Be7 {[%clk 0:00:55.2]} 8. Qxf3 {[%clk 0:00:47.4]} 8... Rb8 {[%clk 0:00:52.4]} 9. d4 {[%clk 0:00:42.6]} 9... bxc6 {[%clk 0:00:51.5]} 10. Qxc6+ {[%clk 0:00:40.2]} 10... Bd7 {[%clk 0:00:48.6]} 11. Qf3 {[%clk 0:00:38.6]} 11... Rb6 {[%clk 0:00:47.4]} 12. Nc3 {[%clk 0:00:36]} 12... O-O {[%clk 0:00:46.5]} 13. Nd5 {[%clk 0:00:34.9]} 13... Bc6 {[%clk 0:00:44.6]} 14. Nxe7+ {[%clk 0:00:33.5]} 14... Kh8 {[%clk 0:00:42.2]} 15. Nxc6 {[%clk 0:00:32.3]} 15... Qd6 {[%clk 0:00:39.2]} 16. Ne5 {[%clk 0:00:30.5]} 16... Qxd4 {[%clk 0:00:35.6]} 17. Nxf7+ {[%clk 0:00:28.4]} 17... Rxf7 {[%clk 0:00:32.7]} 18. Bxf7 {[%clk 0:00:26.8]} 18... Ng4 {[%clk 0:00:27.3]} 19. Be3 {[%clk 0:00:25.3]} 19... Ne5 {[%clk 0:00:19]} 20. Bxd4 {[%clk 0:00:23.9]} 20... Nxf3+ {[%clk 0:00:18.3]} 21. gxf3 {[%clk 0:00:22.9]} 21... Rf6 {[%clk 0:00:17.7]} 22. Bxf6 {[%clk 0:00:21.7]} 22... gxf6 {[%clk 0:00:17.4]} 23. Re8+ {[%clk 0:00:21]} 23... Kg7 {[%clk 0:00:16.8]} 24. Be6 {[%clk 0:00:20.5]} 24... Kg6 {[%clk 0:00:15.1]} 25. Bd7 {[%clk 0:00:20.4]} 25... Kh6 {[%clk 0:00:14.6]} 26. Rae1 {[%clk 0:00:19.7]} 26... Kg6 {[%clk 0:00:13.9]} 27. R1e7 {[%clk 0:00:19.6]} 27... Kh6 {[%clk 0:00:11.9]} 28. Bc6 {[%clk 0:00:19.5]} 28... Kg6 {[%clk 0:00:11.1]} 29. Rxc7 {[%clk 0:00:19.4]} 29... Kg5 {[%clk 0:00:10.5]} 30. Rxa7 {[%clk 0:00:19.3]} 30... Kf5 {[%clk 0:00:10.2]} 31. b4 {[%clk 0:00:19.1]} 31... Kf4 {[%clk 0:00:09.9]} 32. b5 {[%clk 0:00:19]} 32... Kf5 {[%clk 0:00:09.6]} 33. b6 {[%clk 0:00:18.9]} 33... Kf4 {[%clk 0:00:09.4]} 34. b7 {[%clk 0:00:18.8]} 34... Kf5 {[%clk 0:00:09.1]} 35. b8=Q {[%clk 0:00:18.7]} 35... Kg5 {[%clk 0:00:08.4]} 36. Qb7 {[%clk 0:00:18.6]} 36... Kg6 {[%clk 0:00:07.8]} 37. Qe7 {[%clk 0:00:18.5]} 37... Kf5 {[%clk 0:00:06.8]} 38. Rf8 {[%clk 0:00:18.4]} 38... Kg6 {[%clk 0:00:06.2]} 39. Qxf6+ {[%clk 0:00:18.3]} 39... Kh5 {[%clk 0:00:05.9]} 40. Ra5# {[%clk 0:00:16.1]} 1-0

[Event "Live Chess"]
[Site "Chess.com"]
[Date "2011.02.01"]
[Round "-"]
[White "hipposcottimus"]
[Black "joshgregory7"]
[Result "0-1"]
[CurrentPosition "8/1p6/3p1kB1/2p1pP2/8/q7/1r2K3/8 w - -"]
[Timezone "UTC"]
[ECO "C51"]
[ECOUrl "https://www.chess.com/openings/Giuoco-Piano-Game-Evans-Accepted-Anderssen-Variation"]
[UTCDate "2011.02.01"]
[UTCTime "06:12:51"]
[WhiteElo "1774"]
[BlackElo "1602"]
[TimeControl "60"]
[Termination "joshgregory7 won on time"]
[StartTime "06:12:51"]
[EndDate "2011.02.01"]
[EndTime "06:15:02"]
[Link "https://www.chess.com/game/live/93545342"]

1. e4 {[%clk 0:01:00]} 1... e5 {[%clk 0:01:00]} 2. Nf3 {[%clk 0:00:58.6]} 2... Nc6 {[%clk 0:00:59.6]} 3. Bc4 {[%clk 0:00:58.3]} 3... Bc5 {[%clk 0:00:59.1]} 4. b4 {[%clk 0:00:57]} 4... Bxb4 {[%clk 0:00:57.6]} 5. c3 {[%clk 0:00:56.8]} 5... Be7 {[%clk 0:00:56.7]} 6. O-O {[%clk 0:00:56.6]} 6... Nf6 {[%clk 0:00:56.2]} 7. d3 {[%clk 0:00:54.2]} 7... d6 {[%clk 0:00:56.1]} 8. Bg5 {[%clk 0:00:53.3]} 8... O-O {[%clk 0:00:56]} 9. Bxf6 {[%clk 0:00:52.6]} 9... Bxf6 {[%clk 0:00:55.1]} 10. d4 {[%clk 0:00:52.3]} 10... exd4 {[%clk 0:00:53.9]} 11. cxd4 {[%clk 0:00:51.4]} 11... Bg4 {[%clk 0:00:49.2]} 12. Nbd2 {[%clk 0:00:44.4]} 12... Nxd4 {[%clk 0:00:46.4]} 13. Qa4 {[%clk 0:00:40.7]} 13... Nxf3+ {[%clk 0:00:44.4]} 14. Nxf3 {[%clk 0:00:39.2]} 14... Bxa1 {[%clk 0:00:42.7]} 15. Rxa1 {[%clk 0:00:36.9]} 15... Bxf3 {[%clk 0:00:41.8]} 16. gxf3 {[%clk 0:00:36.6]} 16... Qg5+ {[%clk 0:00:40.8]} 17. Kh1 {[%clk 0:00:36.3]} 17... Qf4 {[%clk 0:00:38.4]} 18. Rg1 {[%clk 0:00:35.9]} 18... Qxf3+ {[%clk 0:00:37.3]} 19. Rg2 {[%clk 0:00:34]} 19... h5 {[%clk 0:00:32.2]} 20. Qb3 {[%clk 0:00:30.1]} 20... Qxb3 {[%clk 0:00:28.2]} 21. Bxb3 {[%clk 0:00:29.8]} 21... Kh8 {[%clk 0:00:24.6]} 22. Rg3 {[%clk 0:00:29.4]} 22... f6 {[%clk 0:00:23]} 23. Rf3 {[%clk 0:00:28.9]} 23... g5 {[%clk 0:00:21.4]} 24. Rf5 {[%clk 0:00:28.3]} 24... Rae8 {[%clk 0:00:18.4]} 25. h4 {[%clk 0:00:27.5]} 25... gxh4 {[%clk 0:00:17]} 26. Rxh5+ {[%clk 0:00:26.2]} 26... Kg7 {[%clk 0:00:16.9]} 27. Rxh4 {[%clk 0:00:25.9]} 27... Re5 {[%clk 0:00:15.6]} 28. f3 {[%clk 0:00:25.3]} 28... Rg5 {[%clk 0:00:14.8]} 29. Kh2 {[%clk 0:00:24.2]} 29... Rh8 {[%clk 0:00:14.2]} 30. Rxh8 {[%clk 0:00:22.1]} 30... Kxh8 {[%clk 0:00:14.1]} 31. Kh3 {[%clk 0:00:20.7]} 31... Rc5 {[%clk 0:00:13.4]} 32. Kg4 {[%clk 0:00:18.2]} 32... Kg7 {[%clk 0:00:13.3]} 33. f4 {[%clk 0:00:17.6]} 33... Kg6 {[%clk 0:00:12.8]} 34. e5 {[%clk 0:00:17]} 34... fxe5 {[%clk 0:00:11.9]} 35. f5+ {[%clk 0:00:16.1]} 35... Kf6 {[%clk 0:00:10.9]} 36. Bg8 {[%clk 0:00:14.9]} 36... Rc1 {[%clk 0:00:10.4]} 37. Bh7 {[%clk 0:00:14.3]} 37... Rg1+ {[%clk 0:00:09.8]} 38. Kh5 {[%clk 0:00:13.9]} 38... Ra1 {[%clk 0:00:09.6]} 39. Kg4 {[%clk 0:00:12.9]} 39... Rxa2 {[%clk 0:00:09.5]} 40. Bg6 {[%clk 0:00:12.4]} 40... Ra4+ {[%clk 0:00:09.4]} 41. Kf3 {[%clk 0:00:12.1]} 41... Rb4 {[%clk 0:00:09.3]} 42. Kg3 {[%clk 0:00:10.9]} 42... a5 {[%clk 0:00:09.2]} 43. Kf3 {[%clk 0:00:10.6]} 43... a4 {[%clk 0:00:09.1]} 44. Ke2 {[%clk 0:00:10.4]} 44... a3 {[%clk 0:00:09]} 45. Kd2 {[%clk 0:00:10.2]} 45... c5 {[%clk 0:00:08.8]} 46. Kc2 {[%clk 0:00:09.8]} 46... a2 {[%clk 0:00:08.7]} 47. Kc3 {[%clk 0:00:07.2]} 47... a1=Q+ {[%clk 0:00:08.6]} 48. Kd3 {[%clk 0:00:06.9]} 48... Qa3+ {[%clk 0:00:08.3]} 49. Ke2 {[%clk 0:00:05.6]} 49... Rb2+ {[%clk 0:00:08.2]} 0-1

[Event "Live Chess"]
[Site "Chess.com"]
[Date "2011.02.01"]
[Round "-"]
[White "joshgregory7"]
[Black "hipposcottimus"]
[Result "0-1"]
[CurrentPosition "r3r1k1/p4ppp/6q1/2p1p3/P2PPn2/B1P2P2/3Q1P1P/R3R1K1 w - -"]
[Timezone "UTC"]
[ECO "C65"]
[ECOUrl "https://www.chess.com/openings/Ruy-Lopez-Opening-Berlin-Defense-4.Bxc6-dxc6"]
[UTCDate "2011.02.01"]
[UTCTime "06:11:09"]
[WhiteElo "1602"]
[BlackElo "1774"]
[TimeControl "60"]
[Termination "hipposcottimus won by resignation"]
[StartTime "06:11:09"]
[EndDate "2011.02.01"]
[EndTime "06:12:26"]
[Link "https://www.chess.com/game/live/93545060"]

1. e4 {[%clk 0:01:00]} 1... e5 {[%clk 0:01:00]} 2. Nf3 {[%clk 0:00:59.3]} 2... Nc6 {[%clk 0:00:59.4]} 3. Bb5 {[%clk 0:00:58.2]} 3... Nf6 {[%clk 0:00:58.8]} 4. Bxc6 {[%clk 0:00:57]} 4... dxc6 {[%clk 0:00:58.3]} 5. O-O {[%clk 0:00:56]} 5... Bd6 {[%clk 0:00:57.6]} 6. Re1 {[%clk 0:00:54.7]} 6... Bg4 {[%clk 0:00:57.3]} 7. d3 {[%clk 0:00:52.6]} 7... O-O {[%clk 0:00:55.8]} 8. Nbd2 {[%clk 0:00:50.9]} 8... c5 {[%clk 0:00:54.9]} 9. b3 {[%clk 0:00:50]} 9... b5 {[%clk 0:00:53.4]} 10. Bb2 {[%clk 0:00:49.1]} 10... c4 {[%clk 0:00:53]} 11. bxc4 {[%clk 0:00:47.5]} 11... bxc4 {[%clk 0:00:51.7]} 12. Nxc4 {[%clk 0:00:46.5]} 12... Bc5 {[%clk 0:00:48.6]} 13. Ncd2 {[%clk 0:00:44.2]} 13... Bd6 {[%clk 0:00:46.8]} 14. Nc4 {[%clk 0:00:42.5]} 14... Qd7 {[%clk 0:00:45.9]} 15. Nxd6 {[%clk 0:00:39.8]} 15... Qxd6 {[%clk 0:00:45.4]} 16. a4 {[%clk 0:00:37.5]} 16... Rfe8 {[%clk 0:00:43]} 17. Ba3 {[%clk 0:00:32.8]} 17... c5 {[%clk 0:00:40.6]} 18. Qd2 {[%clk 0:00:27.4]} 18... Bxf3 {[%clk 0:00:38.7]} 19. gxf3 {[%clk 0:00:26.6]} 19... Nh5 {[%clk 0:00:37.1]} 20. c3 {[%clk 0:00:19.4]} 20... Nf4 {[%clk 0:00:36.1]} 21. d4 {[%clk 0:00:18.4]} 21... Qg6+ {[%clk 0:00:35.6]} 0-1

[Event "Live Chess"]
[Site "Chess.com"]
[Date "2011.02.01"]
[Round "-"]
[White "hipposcottimus"]
[Black "Nilesh"]
[Result "1-0"]
[CurrentPosition "8/2q3k1/2r4p/p2KQ3/P6P/8/6P1/8 b - -"]
[Timezone "UTC"]
[ECO "B20"]
[ECOUrl "https://www.chess.com/openings/Sicilian-Defense"]
[UTCDate "2011.02.01"]
[UTCTime "06:08:12"]
[WhiteElo "1774"]
[BlackElo "1758"]
[TimeControl "60"]
[Termination "hipposcottimus won on time"]
[StartTime "06:08:12"]
[EndDate "2011.02.01"]
[EndTime "06:10:29"]
[Link "https://www.chess.com/game/live/93544530"]

1. e4 {[%clk 0:01:00]} 1... c5 {[%clk 0:01:00]} 2. Bb5 {[%clk 0:00:57.9]} 2... Nc6 {[%clk 0:00:59.5]} 3. Bxc6 {[%clk 0:00:56.7]} 3... bxc6 {[%clk 0:00:59.2]} 4. c4 {[%clk 0:00:56.3]} 4... Nf6 {[%clk 0:00:57]} 5. d3 {[%clk 0:00:56]} 5... e5 {[%clk 0:00:56.2]} 6. f4 {[%clk 0:00:55.5]} 6... exf4 {[%clk 0:00:53.6]} 7. Bxf4 {[%clk 0:00:55.2]} 7... Be7 {[%clk 0:00:52.9]} 8. Qd2 {[%clk 0:00:54.7]} 8... O-O {[%clk 0:00:51.9]} 9. Nf3 {[%clk 0:00:54.3]} 9... d5 {[%clk 0:00:48]} 10. O-O {[%clk 0:00:54]} 10... dxe4 {[%clk 0:00:46.9]} 11. dxe4 {[%clk 0:00:51.6]} 11... Qxd2 {[%clk 0:00:45.5]} 12. Nbxd2 {[%clk 0:00:51]} 12... Rd8 {[%clk 0:00:43.3]} 13. Rae1 {[%clk 0:00:49.1]} 13... Bg4 {[%clk 0:00:42.7]} 14. Nb3 {[%clk 0:00:45.4]} 14... a5 {[%clk 0:00:38.3]} 15. a4 {[%clk 0:00:42.9]} 15... h6 {[%clk 0:00:35]} 16. Nc1 {[%clk 0:00:42.1]} 16... Be6 {[%clk 0:00:34.2]} 17. Bg3 {[%clk 0:00:40.7]} 17... Bxc4 {[%clk 0:00:33]} 18. Ne2 {[%clk 0:00:39.9]} 18... Rd2 {[%clk 0:00:30.3]} 19. Nf4 {[%clk 0:00:36]} 19... Rxb2 {[%clk 0:00:28.1]} 20. Bh4 {[%clk 0:00:33]} 20... Bxf1 {[%clk 0:00:26.9]} 21. Bxf6 {[%clk 0:00:30.5]} 21... Bxf6 {[%clk 0:00:25.5]} 22. Nh5 {[%clk 0:00:30.2]} 22... Bc4 {[%clk 0:00:21.1]} 23. Nxf6+ {[%clk 0:00:27.9]} 23... gxf6 {[%clk 0:00:20.5]} 24. Rf1 {[%clk 0:00:27.1]} 24... Bxf1 {[%clk 0:00:18.6]} 25. Kxf1 {[%clk 0:00:26.9]} 25... Rb1+ {[%clk 0:00:18.3]} 26. Kf2 {[%clk 0:00:26.4]} 26... Rd8 {[%clk 0:00:17.9]} 27. Kg3 {[%clk 0:00:26.1]} 27... Rd6 {[%clk 0:00:15.8]} 28. h3 {[%clk 0:00:25.8]} 28... f5 {[%clk 0:00:15.3]} 29. e5 {[%clk 0:00:24.7]} 29... Re6 {[%clk 0:00:13.9]} 30. h4 {[%clk 0:00:22.9]} 30... Rb3 {[%clk 0:00:13.1]} 31. Kf4 {[%clk 0:00:22.2]} 31... Rb4+ {[%clk 0:00:10.6]} 32. Kxf5 {[%clk 0:00:20.8]} 32... c4 {[%clk 0:00:10.1]} 33. Nd4 {[%clk 0:00:17.4]} 33... c3 {[%clk 0:00:09.7]} 34. Nxe6 {[%clk 0:00:16.5]} 34... fxe6+ {[%clk 0:00:08.1]} 35. Kxe6 {[%clk 0:00:15.9]} 35... c2 {[%clk 0:00:07.8]} 36. Kd6 {[%clk 0:00:15.6]} 36... c1=Q {[%clk 0:00:06.9]} 37. e6 {[%clk 0:00:15.3]} 37... Qc4 {[%clk 0:00:06]} 38. Kc7 {[%clk 0:00:15]} 38... Rb6 {[%clk 0:00:05.4]} 39. e7 {[%clk 0:00:14.1]} 39... Qa6 {[%clk 0:00:05.1]} 40. Kd7 {[%clk 0:00:13.4]} 40... Qa7+ {[%clk 0:00:04.7]} 41. Kd6 {[%clk 0:00:13]} 41... c5+ {[%clk 0:00:03.5]} 42. Kxc5 {[%clk 0:00:11.3]} 42... Qc7+ {[%clk 0:00:02.8]} 43. Kd5 {[%clk 0:00:09.1]} 43... Rc6 {[%clk 0:00:02.2]} 44. e8=Q+ {[%clk 0:00:06.3]} 44... Kg7 {[%clk 0:00:00.5]} 45. Qe5+ {[%clk 0:00:05.5]} 1-0

[Event "Live Chess"]
[Site "Chess.com"]
[Date "2011.02.01"]
[Round "-"]
[White "hipposcottimus"]
[Black "Nilesh"]
[Result "1-0"]
[CurrentPosition "1r4k1/p3p1bp/2p1p1p1/2Nn1b2/8/5N2/P3RPPP/2R3K1 b - -"]
[Timezone "UTC"]
[ECO "B20"]
[ECOUrl "https://www.chess.com/openings/Sicilian-Defense"]
[UTCDate "2011.02.01"]
[UTCTime "06:06:42"]
[WhiteElo "1774"]
[BlackElo "1758"]
[TimeControl "60"]
[Termination "hipposcottimus won by resignation"]
[StartTime "06:06:42"]
[EndDate "2011.02.01"]
[EndTime "06:08:02"]
[Link "https://www.chess.com/game/live/93544209"]

1. e4 {[%clk 0:01:00]} 1... c5 {[%clk 0:01:00]} 2. Bb5 {[%clk 0:00:58.4]} 2... Nc6 {[%clk 0:00:59.4]} 3. Bxc6 {[%clk 0:00:57.9]} 3... bxc6 {[%clk 0:00:57.4]} 4. c4 {[%clk 0:00:57.6]} 4... Nf6 {[%clk 0:00:55.3]} 5. d3 {[%clk 0:00:57.3]} 5... d5 {[%clk 0:00:53.4]} 6. e5 {[%clk 0:00:55.8]} 6... Nd7 {[%clk 0:00:50.9]} 7. Nf3 {[%clk 0:00:52.5]} 7... Nb6 {[%clk 0:00:48.6]} 8. b3 {[%clk 0:00:50.9]} 8... dxc4 {[%clk 0:00:46.3]} 9. bxc4 {[%clk 0:00:49.7]} 9... g6 {[%clk 0:00:45.8]} 10. Nc3 {[%clk 0:00:48.8]} 10... Bg7 {[%clk 0:00:44.9]} 11. Bf4 {[%clk 0:00:48]} 11... O-O {[%clk 0:00:43.7]} 12. O-O {[%clk 0:00:47.1]} 12... Bf5 {[%clk 0:00:42]} 13. Re1 {[%clk 0:00:46.8]} 13... Qxd3 {[%clk 0:00:40.4]} 14. Qb3 {[%clk 0:00:41.2]} 14... Qxc4 {[%clk 0:00:38.2]} 15. Qxc4 {[%clk 0:00:35.1]} 15... Nxc4 {[%clk 0:00:37]} 16. Rac1 {[%clk 0:00:31.4]} 16... Rab8 {[%clk 0:00:32.8]} 17. Re2 {[%clk 0:00:30.9]} 17... Nb6 {[%clk 0:00:31.4]} 18. e6 {[%clk 0:00:30.2]} 18... fxe6 {[%clk 0:00:29.6]} 19. Ne4 {[%clk 0:00:29.1]} 19... Nd5 {[%clk 0:00:27]} 20. Bxb8 {[%clk 0:00:26.6]} 20... Rxb8 {[%clk 0:00:24.5]} 21. Nxc5 {[%clk 0:00:25.8]} 1-0

[Event "Live Chess"]
[Site "Chess.com"]
[Date "2011.02.01"]
[Round "-"]
[White "Fishrman"]
[Black "hipposcottimus"]
[Result "0-1"]
[CurrentPosition "8/6k1/4R1p1/2p5/8/2P2P2/PP3KPP/8 w - -"]
[Timezone "UTC"]
[ECO "C65"]
[ECOUrl "https://www.chess.com/openings/Ruy-Lopez-Opening-Berlin-Defense-4.O-O"]
[UTCDate "2011.02.01"]
[UTCTime "06:04:05"]
[WhiteElo "1622"]
[BlackElo "1774"]
[TimeControl "60"]
[Termination "hipposcottimus won on time"]
[StartTime "06:04:05"]
[EndDate "2011.02.01"]
[EndTime "06:06:19"]
[Link "https://www.chess.com/game/live/93543672"]

1. e4 {[%clk 0:01:00]} 1... e5 {[%clk 0:01:00]} 2. Nf3 {[%clk 0:00:59]} 2... Nc6 {[%clk 0:00:59.7]} 3. Bb5 {[%clk 0:00:58.2]} 3... Nf6 {[%clk 0:00:59.4]} 4. O-O {[%clk 0:00:56.4]} 4... a6 {[%clk 0:00:57]} 5. Ba4 {[%clk 0:00:54]} 5... Be7 {[%clk 0:00:55.5]} 6. Re1 {[%clk 0:00:52.7]} 6... O-O {[%clk 0:00:54.5]} 7. c3 {[%clk 0:00:51.9]} 7... b5 {[%clk 0:00:53]} 8. Bc2 {[%clk 0:00:49.5]} 8... d5 {[%clk 0:00:52.7]} 9. exd5 {[%clk 0:00:47.5]} 9... Qxd5 {[%clk 0:00:52.3]} 10. d4 {[%clk 0:00:38.5]} 10... exd4 {[%clk 0:00:48.4]} 11. Nxd4 {[%clk 0:00:34.8]} 11... Bb7 {[%clk 0:00:42.8]} 12. Nxc6 {[%clk 0:00:32.2]} 12... Bxc6 {[%clk 0:00:42.1]} 13. f3 {[%clk 0:00:29.5]} 13... Bc5+ {[%clk 0:00:41]} 14. Kh1 {[%clk 0:00:27]} 14... Ng4 {[%clk 0:00:38.1]} 15. Qxd5 {[%clk 0:00:21.3]} 15... Nf2+ {[%clk 0:00:32]} 16. Kg1 {[%clk 0:00:20.1]} 16... Bxd5 {[%clk 0:00:31.6]} 17. Be3 {[%clk 0:00:16.7]} 17... Bxe3 {[%clk 0:00:17.2]} 18. Rxe3 {[%clk 0:00:14.8]} 18... Rfe8 {[%clk 0:00:16.8]} 19. Kxf2 {[%clk 0:00:13.1]} 19... Rxe3 {[%clk 0:00:14.2]} 20. Kxe3 {[%clk 0:00:13]} 20... Re8+ {[%clk 0:00:13.9]} 21. Kf2 {[%clk 0:00:12.9]} 21... f5 {[%clk 0:00:13]} 22. Nd2 {[%clk 0:00:11.8]} 22... g6 {[%clk 0:00:12.7]} 23. Re1 {[%clk 0:00:09.6]} 23... Rd8 {[%clk 0:00:11.1]} 24. Bb3 {[%clk 0:00:07.7]} 24... Bc4 {[%clk 0:00:09]} 25. Nxc4 {[%clk 0:00:04.3]} 25... bxc4 {[%clk 0:00:08.7]} 26. Bxc4+ {[%clk 0:00:04.2]} 26... Kg7 {[%clk 0:00:06.9]} 27. Bxa6 {[%clk 0:00:04.1]} 27... Kh6 {[%clk 0:00:06.5]} 28. Re2 {[%clk 0:00:03.9]} 28... Rd3 {[%clk 0:00:05.4]} 29. Bxd3 {[%clk 0:00:01.1]} 29... c6 {[%clk 0:00:04.4]} 30. Bxf5 {[%clk 0:00:00.8]} 30... c5 {[%clk 0:00:04]} 31. Bxg6 {[%clk 0:00:00.4]} 31... hxg6 {[%clk 0:00:02.9]} 32. Re6 {[%clk 0:00:00.3]} 32... Kg7 {[%clk 0:00:02.5]} 0-1

[Event "Live Chess"]
[Site "Chess.com"]
[Date "2011.02.01"]
[Round "-"]
[White "hipposcottimus"]
[Black "yogendra077"]
[Result "1-0"]
[CurrentPosition "6Q1/p1p2pk1/2p2Npp/6P1/8/1P5P/6KP/4R3 b - -"]
[Timezone "UTC"]
[ECO "B02"]
[ECOUrl "https://www.chess.com/openings/Alekhines-Defense-Brooklyn-Variation-3.d4"]
[UTCDate "2011.02.01"]
[UTCTime "06:00:34"]
[WhiteElo "1769"]
[BlackElo "1881"]
[TimeControl "60"]
[Termination "hipposcottimus won by checkmate"]
[StartTime "06:00:34"]
[EndDate "2011.02.01"]
[EndTime "06:02:36"]
[Link "https://www.chess.com/game/live/93542986"]

1. e4 {[%clk 0:01:00]} 1... Nf6 {[%clk 0:01:00]} 2. e5 {[%clk 0:00:59]} 2... Ng8 {[%clk 0:00:58.9]} 3. d4 {[%clk 0:00:57.9]} 3... e6 {[%clk 0:00:58.8]} 4. Nf3 {[%clk 0:00:56.9]} 4... d5 {[%clk 0:00:58.4]} 5. c4 {[%clk 0:00:55.9]} 5... dxc4 {[%clk 0:00:56]} 6. Bxc4 {[%clk 0:00:55.6]} 6... Nc6 {[%clk 0:00:55.9]} 7. Nc3 {[%clk 0:00:55.3]} 7... Bd7 {[%clk 0:00:54.6]} 8. d5 {[%clk 0:00:53.3]} 8... exd5 {[%clk 0:00:52.6]} 9. Bxd5 {[%clk 0:00:52.6]} 9... Be6 {[%clk 0:00:50.5]} 10. Bxc6+ {[%clk 0:00:49.2]} 10... bxc6 {[%clk 0:00:49.2]} 11. Bd2 {[%clk 0:00:46.8]} 11... Nh6 {[%clk 0:00:46]} 12. O-O {[%clk 0:00:46.5]} 12... g6 {[%clk 0:00:45.3]} 13. Ng5 {[%clk 0:00:46.1]} 13... Bg7 {[%clk 0:00:44.4]} 14. Nf3 {[%clk 0:00:43.7]} 14... O-O {[%clk 0:00:42.5]} 15. Bxh6 {[%clk 0:00:42.6]} 15... Bxh6 {[%clk 0:00:41]} 16. Qb3 {[%clk 0:00:41.5]} 16... Bg7 {[%clk 0:00:39.1]} 17. Qc2 {[%clk 0:00:40.1]} 17... Bf5 {[%clk 0:00:35.9]} 18. Qe2 {[%clk 0:00:38.1]} 18... Be6 {[%clk 0:00:34.5]} 19. Qe3 {[%clk 0:00:36.9]} 19... Qd7 {[%clk 0:00:32.7]} 20. Ng5 {[%clk 0:00:36]} 20... Qe7 {[%clk 0:00:30.8]} 21. f4 {[%clk 0:00:34.5]} 21... Bf5 {[%clk 0:00:29.3]} 22. Rf3 {[%clk 0:00:31.8]} 22... Bh6 {[%clk 0:00:28.7]} 23. Rh3 {[%clk 0:00:29.9]} 23... Bxg5 {[%clk 0:00:26.9]} 24. fxg5 {[%clk 0:00:29.6]} 24... Bxh3 {[%clk 0:00:26.5]} 25. Qxh3 {[%clk 0:00:28]} 25... Qe6 {[%clk 0:00:25.2]} 26. Ne4 {[%clk 0:00:27.4]} 26... Qxh3 {[%clk 0:00:23.7]} 27. Nf6+ {[%clk 0:00:25]} 27... Kg7 {[%clk 0:00:19.7]} 28. gxh3 {[%clk 0:00:24.7]} 28... Rad8 {[%clk 0:00:17.6]} 29. Re1 {[%clk 0:00:24.3]} 29... Rd2 {[%clk 0:00:16.2]} 30. b3 {[%clk 0:00:22.9]} 30... Rfd8 {[%clk 0:00:15]} 31. e6 {[%clk 0:00:19.7]} 31... R8d3 {[%clk 0:00:14.9]} 32. e7 {[%clk 0:00:17.8]} 32... Rxa2 {[%clk 0:00:12.3]} 33. e8=Q {[%clk 0:00:16.3]} 33... Rg2+ {[%clk 0:00:05.9]} 34. Kxg2 {[%clk 0:00:15.4]} 34... Rd2+ {[%clk 0:00:05.2]} 35. Kg1 {[%clk 0:00:14.8]} 35... Rg2+ {[%clk 0:00:04]} 36. Kxg2 {[%clk 0:00:14.2]} 36... h6 {[%clk 0:00:03.9]} 37. Qg8# {[%clk 0:00:13.2]} 1-0